bitfinex/quotes_ETHUSD_20250706
["timestamp","ask_amount","ask_price","bid_price","bid_amount"]
[1751805537438,1.89925643,2522.8,2522.7,1.40864205]
[1751805538247,1.89925643,2522.8,2522.7,1.41030137]
[1751805538556,1.89925643,2522.8,2522.5,3.9642439]
[1751805539447,1.89925643,2522.8,2522.6,1.41187319]
[1751805539658,1.89925643,2522.8,2522.5,3.9642439]
[1751805539860,8.575,2522.7,2522.6,1.41187281]
[1751805540069,8.563,2522.7,2522.5,3.96422096]
[1751805540266,8.563,2522.7,2522.6,1.41313012]
[1751805543078,12.52700681,2522.7,2522.6,1.41313012]
[1751805543256,8.563,2522.7,2522.6,1.41313012]
[1751805544186,8.563,2522.7,2522.3,5.70472849]
[1751805544684,10.21205653,2522.7,2522.3,5.70478683]
[1751805546476,14.17607862,2522.7,2522.3,1.74015998]
[1751805546681,14.17607862,2522.7,2522.3,11.74015998]
[1751805546878,10.21205653,2522.7,2522.3,15.7047687]
[1751805547883,14.17607315,2522.7,2522.3,11.74015998]
[1751805548093,1.41760732,2522.6,2522.3,11.76867098]
[1751805548771,1.41760732,2522.6,2522.2,1.76867098]
[1751805548962,5.38177445,2522.6,2522.1,5.73353719]
[1751805549768,5.38177445,2522.6,2522.3,0.001]
[1751805550094,4.78202111,2522.5,2522.3,0.001]
[1751805550290,9.53538587,2522.4,2522.3,0.001]
[1751805550498,13.49986414,2522.4,2522.3,0.001]
[1751805550710,14.04986414,2522.4,2522.3,0.001]
[1751805551003,24.84376414,2522.4,2522.3,0.001]
[1751805553656,25.19874577,2522.4,2522.3,0.001]
[1751805554483,31.98415524,2522.4,2522.3,0.001]
[1751805558791,23.46515524,2522.4,2522.3,0.001]
[1751805559098,34.13415524,2522.4,2522.3,0.001]
[1751805559667,23.46515524,2522.4,2522.3,0.001]
[1751805559864,34.13315524,2522.4,2522.3,0.001]
[1751805561898,23.46515524,2522.4,2522.3,0.001]
[1751805562101,34.12615524,2522.4,2522.3,0.001]
[1751805563781,34.14096953,2522.4,2522.3,0.001]
[1751805564991,23.47996953,2522.4,2522.3,0.001]
[1751805565191,34.12596953,2522.4,2522.3,0.001]
[1751805565588,34.12196953,2522.4,2522.3,0.001]
[1751805566174,34.11996953,2522.4,2522.3,0.001]
[1751805566677,34.11696953,2522.4,2522.3,0.001]
[1751805567107,34.11696953,2522.4,2522.3,0.0207574]
[1751805567811,34.11496953,2522.4,2522.3,0.0207574]
[1751805568009,23.47996953,2522.4,2522.3,0.0207574]
[1751805568316,34.11096953,2522.4,2522.3,0.0207574]
[1751805568515,22.68606953,2522.4,2522.3,0.0207574]
[1751805568678,31.13406953,2522.4,2522.3,0.0207574]
[1751805570317,31.96096953,2522.4,2522.3,0.0207574]
[1751805573313,23.51296953,2522.4,2522.3,0.0207574]
[1751805573519,31.94596953,2522.4,2522.3,0.0207574]
[1751805573730,23.51296953,2522.4,2522.3,0.0207574]
[1751805573906,31.94396953,2522.4,2522.3,0.0207574]
[1751805575620,31.94296953,2522.4,2522.3,0.0207574]
[1751805577114,23.51296953,2522.4,2522.3,0.0207574]
[1751805577315,31.93596953,2522.4,2522.3,0.0207574]
[1751805584707,31.56617361,2522.4,2522.3,0.0207574]
[1751805585044,31.90908745,2522.4,2522.3,0.0207574]
[1751805585333,31.08217931,2522.4,2522.3,0.0207574]
[1751805586238,31.07217931,2522.4,2522.3,0.0207574]
[1751805588759,29.49979344,2522.4,2522.3,0.0207574]
[1751805589739,29.44979344,2522.4,2522.3,0.0207574]
[1751805590035,29.44379344,2522.4,2522.3,0.0207574]
[1751805590606,25.47931517,2522.4,2522.3,0.0207574]
[1751805591018,7.15731517,2522.4,2522.3,0.0207574]
[1751805591260,15.52431517,2522.4,2522.3,4.74689285]
[1751805591534,15.52431517,2522.4,2522.3,0.7822574]
[1751805594747,15.52431517,2522.4,2522.3,0.0207574]
[1751805594926,15.52431517,2522.4,2522.3,2.1497574]
[1751805596023,8.7389057,2522.4,2522.3,2.1497574]
[1751805597550,8.7219057,2522.4,2522.3,2.1497574]
[1751805600054,8.35,2522.4,2522.3,2.1497574]
[1751805601929,8.335,2522.4,2522.3,6.11439035]
[1751805602135,8.335,2522.4,2522.3,2.1497574]
[1751805602440,8.333,2522.4,2522.3,2.1497574]
[1751805603064,3.96412121,2522.7,2522.3,2.1497574]
[1751805603065,3.96419799,2522.6,2522.3,2.1497574]
[1751805603255,8.70301911,2522.5,2522.3,2.1497574]
[1751805603455,8.332,2522.5,2522.3,2.1497574]
[1751805604183,8.332,2522.5,2522.3,2.1487574]
[1751805604488,12.29632496,2522.5,2522.3,2.1487574]
[1751805604681,8.332,2522.5,2522.3,0.0207574]
[1751805604974,8.332,2522.5,2522.3,2.1487574]
[1751805606177,8.282,2522.5,2522.3,2.1487574]
[1751805608568,8.313,2522.4,2522.3,2.1487574]
[1751805608777,0.55,2522.7,2522.3,2.1487574]
[1751805608958,8.68403443,2522.6,2522.3,2.1487574]
[1751805609254,0.37103443,2522.5,2522.3,2.1487574]
[1751805609460,8.31,2522.4,2522.3,2.1487574]
[1751805611476,8.68111524,2522.4,2522.3,2.1487574]
[1751805612949,0.37111524,2522.4,2522.3,2.1487574]
[1751805613351,8.66911524,2522.4,2522.3,0.0207574]
[1751805613678,8.66911524,2522.4,2522.3,2.1047574]
[1751805615383,8.66911524,2522.4,2522.3,0.0207574]
[1751805615559,8.66911524,2522.4,2522.3,2.1047574]
[1751805618077,8.67111524,2522.4,2522.3,2.1047574]
[1751805618286,0.37311524,2522.4,2522.3,2.1047574]
[1751805618451,8.65811524,2522.4,2522.3,2.1047574]
[1751805618868,8.65811524,2522.4,2522.3,6.06939285]
[1751805619354,8.65811524,2522.4,2522.3,2.1047574]
[1751805619974,8.65211524,2522.4,2522.3,2.1047574]
[1751805620860,8.65211524,2522.4,2522.3,6.06939285]
[1751805622453,8.65211524,2522.4,2522.3,2.1047574]
[1751805623386,8.65211524,2522.4,2522.3,0.0207574]
[1751805623582,12.61659351,2522.4,2522.3,0.0207574]
[1751805623790,13.87825286,2522.4,2522.3,0.0207574]
[1751805625854,9.91377459,2522.4,2522.3,0.0207574]
[1751805626450,13.87825286,2522.4,2522.3,0.0207574]
[1751805626856,9.91377459,2522.4,2522.3,0.0207574]
[1751805627688,9.91377459,2522.4,2522.3,0.0477194]
[1751805628804,13.87825286,2522.4,2522.3,0.0477194]
[1751805628991,9.91377459,2522.4,2522.3,0.0477194]
[1751805630086,1.63477459,2522.4,2522.3,0.0477194]
[1751805630400,0.37311524,2522.4,2522.3,4.01235485]
[1751805630576,8.255,2522.4,2522.3,4.82375485]
[1751805630775,8.62611524,2522.4,2522.3,4.82375485]
[1751805631483,0.37311524,2522.4,2522.3,4.82375485]
[1751805631684,8.62611524,2522.4,2522.3,4.82375485]
[1751805632083,8.255,2522.4,2522.3,4.82375485]
[1751805632966,8.255,2522.4,2522.3,4.01235485]
[1751805633173,8.255,2522.4,2522.3,0.0477194]
[1751805633369,8.62683226,2522.4,2522.3,2.1317194]
[1751805633682,8.255,2522.4,2522.3,6.09635485]
[1751805634065,8.255,2522.4,2522.3,2.1317194]
[1751805634281,8.255,2522.4,2522.3,6.09635485]
[1751805634680,8.255,2522.4,2522.3,4.01235485]
[1751805634970,8.255,2522.4,2522.3,0.0477194]
[1751805635487,9.47691696,2522.4,2522.3,0.0477194]
[1751805635700,9.84871513,2522.4,2522.3,2.1317194]
[1751805635999,8.62679817,2522.4,2522.3,2.1317194]
[1751805636165,8.62679817,2522.4,2522.3,0.0477194]
[1751805637399,13.14127644,2522.4,2522.3,0.0477194]
[1751805638721,9.17679817,2522.4,2522.3,0.0477194]
[1751805639423,13.14127644,2522.4,2522.3,0.0477194]
[1751805640421,10.96974879,2522.4,2522.3,0.0477194]
[1751805642224,14.93422706,2522.4,2522.3,0.0477194]
[1751805642432,10.96974879,2522.4,2522.3,0.0477194]
[1751805642631,14.93422706,2522.4,2522.3,0.0477194]
[1751805643127,10.96974879,2522.4,2522.3,0.0477194]
[1751805644430,14.93422706,2522.4,2522.3,0.0477194]
[1751805645228,10.96974879,2522.4,2522.3,0.0477194]
[1751805646140,14.93422706,2522.4,2522.3,0.0477194]
[1751805647429,14.93402738,2522.4,2522.3,0.0477194]
[1751805650504,10.96954911,2522.4,2522.3,0.0477194]
[1751805651459,14.93402738,2522.4,2522.3,0.0477194]
[1751805651608,10.96954911,2522.4,2522.3,0.0477194]
[1751805652339,14.93402738,2522.4,2522.3,0.0477194]
[1751805652707,10.96954911,2522.4,2522.3,0.0477194]
[1751805652912,14.93402738,2522.4,2522.3,0.0477194]
[1751805653408,10.96954911,2522.4,2522.3,0.0477194]
[1751805653637,14.93402738,2522.4,2522.3,0.0477194]
[1751805654438,10.96954911,2522.4,2522.3,0.0477194]
[1751805657038,14.93402738,2522.4,2522.3,0.0477194]
[1751805658554,24.93402738,2522.4,2522.3,0.0477194]
[1751805658711,25.76292738,2522.4,2522.3,0.0477194]
[1751805659550,25.76194837,2522.4,2522.3,0.0477194]
[1751805660452,25.69894837,2522.4,2522.3,0.0477194]
[1751805660849,25.32832889,2522.4,2522.3,0.0477194]
[1751805661051,32.48436764,2522.4,2522.3,0.0477194]
[1751805662030,32.48136764,2522.4,2522.3,0.0477194]
[1751805662331,24.29436764,2522.4,2522.3,0.0477194]
[1751805662532,32.48136764,2522.4,2522.3,0.0477194]
[1751805671471,24.29436764,2522.4,2522.3,0.0477194]
[1751805671679,32.46636764,2522.4,2522.3,0.0477194]
[1751805673168,32.46536764,2522.4,2522.3,0.0477194]
[1751805673572,32.46563494,2522.4,2522.3,0.0477194]
[1751805676488,32.09473836,2522.4,2522.3,0.0477194]
[1751805676662,32.46567367,2522.4,2522.3,0.0477194]
[1751805679867,32.46574619,2522.4,2522.3,0.0477194]
[1751805682886,32.46584843,2522.4,2522.3,0.0477194]
[1751805683415,4.51510705,2522.0,2521.9,0.0435281]
[1751805683697,15.70731712,2522.0,2521.9,0.0435281]
[1751805683897,23.87331712,2522.0,2521.9,0.0435281]
[1751805685866,23.87344816,2522.0,2521.9,0.0435281]
[1751805687688,30.65885763,2522.0,2521.9,0.0435281]
[1751805687892,32.45180825,2522.0,2521.9,0.0435281]
[1751805688093,32.45180825,2522.0,2521.4,0.0435281]
[1751805688094,4.51589331,2521.5,2521.4,0.0435281]
[1751805688294,13.05213442,2521.5,2521.4,0.0435281]
[1751805691396,0.92124111,2521.5,2521.4,0.0435281]
[1751805691627,0.37124111,2521.5,2521.4,0.8061281]
[1751805691768,8.53224111,2521.5,2521.4,0.8061281]
[1751805695901,8.52724111,2521.5,2521.4,0.8061281]
[1751805697904,8.52717585,2521.5,2521.4,0.8061281]
[1751805698308,0.37117585,2521.5,2521.4,5.24942367]
[1751805698609,6.78540947,2522.0,2521.9,3.96526428]
[1751805698808,15.31049119,2522.0,2521.7,3.96556171]
[1751805699008,14.93940947,2522.0,2521.7,0.7626]
[1751805699703,14.93940947,2522.0,2521.7,4.72815803]
[1751805700408,14.93940947,2522.0,2521.7,0.7626]
[1751805700612,14.93940947,2522.0,2521.7,4.72816926]
[1751805703606,14.93940947,2522.0,2521.7,0.7626]
[1751805706603,10.55,2521.9,2521.5,0.8047]
[1751805706909,8.51787854,2521.8,2521.4,0.0435281]
[1751805707205,0.37087854,2521.7,2521.4,0.0435281]
[1751805707407,8.145,2521.6,2521.4,4.00954427]
[1751805708706,8.145,2521.6,2521.4,4.00950215]
[1751805711382,8.145,2521.6,2521.5,3.96589331]
[1751805711582,8.145,2521.6,2521.4,4.00949644]
[1751805713020,0.002,2522.0,2521.5,0.82055893]
[1751805713322,0.002,2522.0,2521.9,4.74616428]
[1751805713517,8.14,2522.0,2521.9,4.74616428]
[1751805713896,0.002,2522.0,2521.9,4.74616428]
[1751805714127,8.139,2522.0,2521.9,4.74616428]
[1751805716594,8.139,2522.0,2521.9,0.7809]
[1751805717231,8.139,2522.0,2521.9,4.74616428]
[1751805717606,8.139,2522.0,2521.9,0.7809]
[1751805720625,8.139,2522.0,2521.8,3.96539833]
[1751805721335,8.139,2522.0,2521.7,4.7493372]
[1751805721827,8.139,2522.0,2521.8,3.96540963]
[1751805722234,8.139,2522.0,2521.7,4.74930982]
[1751805722735,8.132,2521.9,2521.8,3.96542058]
[1751805724417,0.002,2522.0,2521.9,3.96526428]
[1751805724613,8.133,2522.0,2521.9,4.74906428]
[1751805725043,0.002,2522.0,2521.9,4.74906428]
[1751805725256,8.133,2522.0,2521.9,4.74906428]
[1751805725560,0.002,2522.0,2521.9,4.74906428]
[1751805725763,8.133,2522.0,2521.9,5.66016541]
[1751805726058,8.133,2522.0,2521.9,5.62051277]
[1751805726818,0.002,2522.0,2521.9,5.66016541]
[1751805727023,8.133,2522.0,2521.9,5.66016541]
[1751805731676,8.133,2522.0,2521.9,5.62051277]
[1751805734311,8.133,2522.0,2521.9,4.74906428]
[1751805735490,0.002,2522.0,2521.9,4.74906428]
[1751805735799,8.132,2522.0,2521.9,4.74906428]
[1751805739503,8.131,2522.0,2521.9,4.78871692]
[1751805739708,0.002,2522.0,2521.9,4.78871692]
[1751805739997,0.002,2522.0,2521.9,5.66413067]
[1751805743699,0.002,2522.0,2521.9,3.96526428]
[1751805752878,0.7831,2522.0,2521.8,3.96533754]
[1751805753078,0.7831,2522.0,2521.9,3.96526428]
[1751805754077,0.002,2522.0,2521.9,3.96526428]
[1751805756780,0.002,2522.0,2521.9,3.96626428]
[1751805758511,8.129,2522.0,2521.9,3.96626428]
[1751805759716,8.129,2522.0,2521.9,5.42053223]
[1751805760100,8.129,2522.0,2521.9,5.46018487]
[1751805760885,0.002,2522.0,2521.9,5.46018487]
[1751805761285,0.002,2522.0,2521.9,14.66318487]
[1751805761502,0.002,2522.0,2521.9,17.73114554]
[1751805762412,0.002,2522.0,2521.9,15.41093223]
[1751805763311,0.002,2522.0,2521.9,16.75466428]
[1751805763817,0.002,2522.0,2521.9,15.96726428]
[1751805765019,0.002,2522.4,2522.3,3.96463545]
[1751805765340,8.128,2522.4,2522.3,3.96463545]
[1751805765991,8.128,2522.4,2522.3,4.74413545]
[1751805766298,8.128,2522.4,2522.3,5.61502559]
[1751805766683,0.002,2522.4,2522.3,5.61502559]
[1751805769441,0.002,2522.4,2522.3,5.65467194]
[1751805769617,0.002,2522.4,2522.3,15.65467194]
[1751805769943,0.002,2522.4,2522.3,15.61502559]
[1751805775010,0.002,2522.4,2522.3,17.61502559]
[1751805775210,0.002,2522.4,2522.3,16.83552559]
[1751805776311,0.002,2522.4,2522.3,14.83552559]
[1751805776541,0.002,2522.4,2522.3,16.83552559]
[1751805777145,0.7617,2523.0,2522.3,17.61502559]
[1751805777329,0.5935281,2523.4,2522.5,3.96432111]
[1751805777330,8.123,2522.9,2522.5,3.96432111]
[1751805777533,8.123,2522.9,2522.8,3.96384969]
[1751805777833,0.7617,2523.3,2523.0,3.96342325]
[1751805778136,8.123,2523.2,2522.7,3.96400681]
[1751805778346,8.123,2523.2,2522.6,3.96416395]
[1751805778736,8.123,2523.2,2523.0,3.96344866]
[1751805779032,9.01582281,2523.2,2523.0,3.96344866]
[1751805779233,9.01582281,2523.2,2522.9,3.96363232]
[1751805780042,0.7617,2523.1,2522.8,3.96376336]
[1751805780409,0.7617,2523.1,2522.8,3.96383926]
[1751805781640,0.7617,2523.1,2522.5,3.96426026]
[1751805781847,0.8284,2522.9,2522.6,3.96405582]
[1751805782448,0.8284,2522.9,2522.8,3.96384969]
[1751805782624,0.8284,2522.9,2522.7,3.96392779]
[1751805782944,0.8284,2522.9,2522.8,3.96384969]
[1751805784226,8.9504,2522.9,2522.8,3.96384969]
[1751805787556,8.9504,2522.9,2522.5,3.9642739]
[1751805787745,8.9504,2522.9,2522.7,3.96398138]
[1751805788055,8.9504,2522.9,2522.6,3.96408221]
[1751805788358,8.9504,2522.9,2522.7,3.96391801]
[1751805788857,8.9504,2522.9,2522.6,3.96409185]
[1751805789040,9.84544,2522.9,2522.5,3.96421766]
[1751805790359,9.84544,2522.9,2522.6,3.96415955]
[1751805790557,9.84544,2522.9,2522.5,3.96425588]
[1751805791059,9.84544,2522.9,2522.6,3.96415761]
[1751805791958,8.9504,2522.9,2522.6,3.96407621]
[1751805793768,8.9504,2522.9,2522.5,3.96420515]
[1751805794174,8.9504,2522.9,2522.6,3.96415891]
[1751805794977,8.9504,2522.9,2522.4,3.96437152]
[1751805795183,0.7562,2522.7,2522.3,3.96454545]
[1751805795389,8.12,2522.6,2522.3,3.96454545]
[1751805795577,8.12,2522.6,2522.4,2.6]
[1751805795750,8.12,2522.6,2522.3,3.96454545]
[1751805796470,8.119,2522.5,2522.4,3.96445035]
[1751805798660,0.7562,2523.0,2522.3,1.75453279]
[1751805798860,8.49049582,2522.9,2522.5,3.96427004]
[1751805799064,0.37149582,2522.8,2522.6,3.9640807]
[1751805799265,0.37149582,2522.8,2522.5,3.96425214]
[1751805799872,0.7562,2522.7,2522.4,3.9643996]
[1751805800068,0.7562,2522.7,2522.5,3.96431307]
[1751805800773,0.7562,2522.7,2522.5,6.56431307]
[1751805801173,0.7562,2522.7,2522.5,2.6]
[1751805802265,2.04010514,2522.7,2522.5,2.6]
[1751805802790,2.04010514,2522.7,2522.3,0.001]
[1751805802791,8.118,2522.6,2522.3,0.001]
[1751805802994,0.7666,2522.5,2522.3,0.001]
[1751805803297,4.73107827,2522.4,2522.3,0.001]
[1751805803466,5.1024291,2522.4,2522.3,0.001]
[1751805803797,7.49379177,2522.4,2522.3,0.001]
[1751805804469,3.5293135,2522.4,2522.3,0.001]
[1751805806865,9.25595083,2522.4,2522.3,0.001]
[1751805807403,9.25695083,2522.4,2522.3,0.001]
[1751805808202,8.8856,2522.4,2522.3,0.001]
[1751805808698,9.25636287,2522.4,2522.3,0.001]
[1751805809703,0.37076287,2522.4,2522.3,3.96563545]
[1751805809900,8.48876287,2522.4,2522.3,3.96563545]
[1751805810100,8.118,2522.4,2522.3,3.96563545]
[1751805811399,7.61600947,2522.6,2522.3,3.96563545]
[1751805811700,8.118,2522.4,2522.3,3.96563545]
[1751805812303,8.118,2522.4,2522.3,0.001]
[1751805815099,8.118,2522.4,2522.3,3.96563545]
[1751805815811,9.77420367,2522.6,2522.4,3.964457]
[1751805815977,8.48773304,2522.5,2522.4,3.964457]
[1751805816182,8.117,2522.5,2522.4,3.964457]
[1751805816675,9.77420367,2522.6,2522.4,3.964457]
[1751805816877,8.117,2522.5,2522.4,3.964457]
[1751805818212,8.48785175,2522.5,2522.4,3.964457]
[1751805820308,0.37085175,2522.5,2522.4,3.964457]
[1751805820517,8.116,2522.5,2522.4,3.964457]
[1751805821114,8.116,2522.5,2522.3,3.96554293]
[1751805821278,8.116,2522.5,2522.4,3.96447827]
[1751805822822,8.116,2522.5,2522.3,3.96554835]
[1751805823394,8.116,2522.5,2522.3,0.001]
[1751805823633,0.8275,2522.4,2522.3,0.001]
[1751805824414,2.11826736,2522.4,2522.3,0.001]
[1751805824621,2.48943496,2522.4,2522.3,0.001]
[1751805825822,2.48951405,2522.4,2522.3,0.001]
[1751805829210,8.48524669,2522.4,2522.3,3.96563545]
[1751805832046,8.48556193,2522.4,2522.3,3.96563545]
[1751805835062,8.48556193,2522.4,2522.3,0.001]
[1751805837853,8.48556193,2522.4,2522.3,3.96563545]
[1751805840650,8.48556193,2522.4,2522.3,0.001]
[1751805844277,8.48577046,2522.4,2522.3,0.001]
[1751805846082,8.114,2522.4,2522.3,0.001]
[1751805846287,8.48577178,2522.4,2522.3,0.001]
[1751805847691,9.73097421,2522.4,2522.3,0.001]
[1751805848096,10.51657421,2522.4,2522.3,0.001]
[1751805850384,9.27137178,2522.4,2522.3,0.001]
[1751805851811,13.23585005,2522.4,2522.3,0.001]
[1751805852458,9.27137178,2522.4,2522.3,0.001]
[1751805855698,13.23585005,2522.4,2522.3,0.001]
[1751805856002,13.78585005,2522.4,2522.3,0.001]
[1751805856491,16.23961099,2522.4,2522.3,0.001]
[1751805861104,15.86783921,2522.4,2522.3,0.001]
[1751805861286,16.23958157,2522.4,2522.3,0.001]
[1751805864194,35.01799104,2522.4,2522.3,0.001]
[1751805864395,35.01799104,2522.4,2522.0,0.001]
[1751805864396,13.96494984,2522.1,2522.0,0.001]
[1751805864694,31.23350854,2522.1,2522.0,0.001]
[1751805865707,31.78350854,2522.1,2522.0,0.001]
[1751805869875,33.77650854,2522.1,2522.0,0.001]
[1751805870724,23.67750854,2522.1,2522.0,0.001]
[1751805871011,33.77650854,2522.1,2522.0,0.001]
[1751805871306,31.78350854,2522.1,2522.0,0.001]
[1751805876913,31.78250854,2522.1,2522.0,0.001]
[1751805877114,18.9286587,2522.1,2522.0,0.001]
[1751805877313,30.99860854,2522.1,2522.0,0.001]
[1751805877813,22.89360854,2522.1,2522.0,0.001]
[1751805878025,27.0336587,2522.1,2522.0,0.001]
[1751805878518,17.0326587,2522.1,2522.0,0.001]
[1751805878697,15.81115183,2522.1,2522.0,0.001]
[1751805878892,7.70715183,2522.1,2522.0,0.001]
[1751805879098,15.81115183,2522.1,2522.0,0.001]
[1751805879498,7.15715183,2522.1,2522.0,3.96610705]
[1751805879695,15.26115183,2522.1,2522.0,0.001]
[1751805881914,15.26013611,2522.1,2522.0,0.001]
[1751805883734,15.25013611,2522.1,2522.0,0.001]
[1751805886038,7.14613611,2522.1,2522.0,0.001]
[1751805886429,15.24813611,2522.1,2522.0,0.001]
[1751805887314,7.14613611,2522.1,2522.0,0.001]
[1751805887513,15.24713611,2522.1,2522.0,0.001]
[1751805887943,15.2473652,2522.1,2522.0,0.001]
[1751805893418,17.24688233,2522.1,2522.0,0.001]
[1751805893614,15.2453652,2522.1,2522.0,0.001]
[1751805894526,7.1463652,2522.1,2522.0,0.001]
[1751805894727,15.2453652,2522.1,2522.0,0.001]
[1751805897248,15.24545289,2522.1,2522.0,0.001]
[1751805897639,15.24547314,2522.1,2522.0,0.001]
[1751805900140,15.24554291,2522.1,2522.0,0.001]
[1751805903774,15.24254291,2522.1,2522.0,0.001]
[1751805908294,15.24312979,2522.1,2522.0,0.001]
[1751805909674,15.24212979,2522.1,2522.0,0.001]
[1751805910676,15.24112979,2522.1,2522.0,0.001]
[1751805911297,15.24142931,2522.1,2522.0,0.001]
[1751805916001,15.24342931,2522.1,2522.0,0.001]
[1751805916211,17.52587224,2522.1,2522.0,0.001]
[1751805916419,15.24342931,2522.1,2522.0,0.001]
[1751805920343,15.24345712,2522.1,2522.0,0.001]
[1751805920746,7.14945712,2522.1,2522.0,0.001]
[1751805920932,15.24145712,2522.1,2522.0,0.001]
[1751805921241,7.14945712,2522.1,2522.0,0.001]
[1751805921443,15.24045712,2522.1,2522.0,0.001]
[1751805921810,15.24045712,2522.1,2522.0,3.96610705]
[1751805922013,7.14945712,2522.1,2522.0,3.96610705]
[1751805922223,15.24045712,2522.1,2522.0,0.001]
[1751805928414,15.24045712,2522.1,2522.0,3.96610705]
[1751805928828,15.24045712,2522.1,2522.0,0.001]
[1751805930430,15.24045712,2522.1,2522.0,3.96610705]
[1751805933150,8.46504765,2522.1,2522.0,4.76580705]
[1751805934926,8.46504765,2522.1,2522.0,0.001]
[1751805937025,8.46504765,2522.1,2522.0,3.96610705]
[1751805937229,8.46504765,2522.1,2522.0,0.001]
[1751805937427,8.46504765,2522.1,2522.0,3.96610705]
[1751805937628,8.46504765,2522.1,2522.0,0.001]
[1751805941166,8.46504765,2522.1,2522.0,3.96610705]
[1751805942961,8.45904765,2522.1,2522.0,3.96610705]
[1751805943467,8.45804765,2522.1,2522.0,5.57504298]
[1751805943857,0.37404765,2522.1,2522.0,5.57504298]
[1751805944034,8.45804765,2522.1,2522.0,5.57504298]
[1751805946068,0.37404765,2522.1,2522.0,5.57504298]
[1751805946264,8.45704765,2522.1,2522.0,5.61469405]
[1751805946492,8.45704765,2522.1,2522.0,5.57504298]
[1751805947177,8.085,2522.1,2522.0,5.57504298]
[1751805948572,8.085,2522.1,2522.0,5.61469405]
[1751805948774,8.085,2522.1,2522.0,5.57504298]
[1751805949307,0.002,2522.1,2522.0,5.57504298]
[1751805949514,8.084,2522.1,2522.0,5.57504298]
[1751805951196,0.002,2522.1,2522.0,5.57504298]
[1751805951398,8.084,2522.1,2522.0,5.57504298]
[1751805959410,8.084,2522.1,2522.0,4.75934298]
[1751805965343,8.084,2522.1,2522.0,3.96610705]
[1751805968143,0.002,2522.1,2522.0,4.77010705]
[1751805968313,8.078,2522.1,2522.0,4.80975812]
[1751805968643,8.078,2522.1,2522.0,4.77010705]
[1751805969136,0.002,2522.1,2522.0,4.77010705]
[1751805969340,0.002,2522.1,2522.0,5.68339405]
[1751805969518,0.002,2522.1,2522.0,5.64374298]
[1751805969519,8.077,2522.1,2522.0,5.64374298]
[1751805971539,0.002,2522.1,2522.0,5.64374298]
[1751805971749,0.002,2522.1,2522.0,5.68339405]
[1751805972155,0.002,2522.1,2522.0,5.64374298]
[1751805972457,0.002,2522.1,2522.0,8.24374298]
[1751805975154,0.002,2522.1,2522.0,18.24374298]
[1751805975328,1e-08,2522.1,2522.0,18.24374298]
[1751805983098,1e-08,2522.3,2522.2,4.72479264]
[1751805983309,1e-08,2522.3,2522.2,18.5750863]
[1751805983471,1e-08,2522.3,2522.2,18.53543838]
[1751805986796,1e-08,2522.3,2522.2,19.75243838]
[1751805988417,1e-08,2522.3,2522.2,17.77543838]
[1751805999546,1e-08,2522.3,2522.2,18.55553838]
[1751806002442,1e-08,2522.3,2522.2,17.77543838]
[1751806004043,1e-08,2522.3,2522.2,18.55033838]
[1751806007545,1e-08,2522.3,2522.2,17.77543838]
[1751806007844,1e-08,2522.3,2522.2,19.75143838]
[1751806008716,1e-08,2522.3,2522.2,7.77543838]
[1751806008920,0.78740001,2522.3,2522.2,3.96479264]
[1751806009550,1.15916059,2522.3,2522.2,3.96479264]
[1751806011326,0.78740001,2522.3,2522.2,3.96479264]
[1751806012253,1e-08,2522.3,2522.2,14.75787792]
[1751806013527,1e-08,2522.3,2522.2,13.96479264]
[1751806014425,8.06200001,2522.3,2522.2,13.96479264]
[1751806019460,8.06200001,2522.3,2522.2,16.56479264]
[1751806023066,1e-08,2522.3,2522.2,16.56479264]
[1751806023367,8.06100001,2522.3,2522.2,16.56479264]
[1751806028186,8.06100001,2522.3,2522.2,6.56479264]
[1751806028994,1e-08,2522.3,2522.2,6.56479264]
[1751806029194,1e-08,2522.3,2522.2,7.65761243]
[1751806029359,1e-08,2522.3,2522.2,17.65761243]
[1751806029558,1e-08,2522.3,2522.2,15.01796451]
[1751806030492,1e-08,2522.3,2522.2,15.83266451]
[1751806035999,1e-08,2522.3,2522.2,19.31298448]
[1751806036519,1e-08,2522.3,2522.2,15.83266451]
[1751806041935,1e-08,2522.3,2522.2,17.80366451]
[1751806043100,1e-08,2522.3,2522.2,15.01796451]
[1751806043305,1e-08,2522.3,2522.2,16.98896451]
[1751806044203,1e-08,2522.3,2522.2,15.01796451]
[1751806047826,1e-08,2522.3,2522.2,3.96479264]
[1751806052337,0.75680001,2522.3,2522.2,3.96479264]
[1751806053657,8.05800001,2522.3,2522.2,3.96479264]
[1751806054850,1e-08,2522.3,2522.2,13.96479264]
[1751806059274,1e-08,2522.3,2522.2,3.96479264]
[1751806064377,1e-08,2522.3,2522.2,4.95506586]
[1751806064981,1e-08,2522.3,2522.2,4.99471378]
[1751806065163,8.05600001,2522.3,2522.2,4.99471378]
[1751806065361,8.05600001,2522.3,2522.2,14.99471378]
[1751806065687,1e-08,2522.3,2522.2,14.95506586]
[1751806071330,1e-08,2522.3,2522.2,15.77336586]
[1751806080704,1e-08,2522.3,2522.2,14.95506586]
[1751806083632,1e-08,2522.3,2522.2,15.75366586]
[1751806087897,1e-08,2522.5,2522.4,13.96447827]
[1751806088101,1e-08,2522.5,2522.4,17.68793806]
[1751806089430,1e-08,2522.5,2522.4,18.51763806]
[1751806091619,1e-08,2522.5,2522.4,22.06948492]
[1751806092235,1e-08,2522.5,2522.4,18.51763806]
[1751806092803,1e-08,2522.5,2522.4,17.68793806]
[1751806093431,1e-08,2522.5,2522.4,19.65693806]
[1751806099519,1e-08,2522.5,2522.4,15.93347827]
[1751806100545,0.76750001,2522.5,2522.4,15.93347827]
[1751806102452,0.76750001,2522.5,2522.4,13.96447827]
[1751806103243,0.76750001,2522.5,2522.3,3.9646069]
[1751806103244,0.76750001,2522.5,2522.3,3.96449054]
[1751806104645,8.8175,2522.4,2522.3,13.96449054]
[1751806104846,8.8175,2522.4,2522.3,3.96449054]
[1751806106214,0.7675,2522.4,2522.3,3.96449054]
[1751806106418,8.8175,2522.4,2522.3,3.96449054]
[1751806109052,8.05,2522.4,2522.3,3.96449054]
[1751806114758,8.05,2522.4,2522.3,3.96549054]